Cogmind - Beta 16 --- EXPLORER MODE // 2025.11.25 @ 12:43:24 Player: K.K.Y. Result: Destroyed by G-50 Soldier with Heavy Laser Performance ------------- Evolutions (4) 2000 Regions Visited (6) 1200 Robots Destroyed (83) 415 Value Destroyed (3267) 3267 Prototype IDs (28) 560 Alien Tech Used (0) 0 Bonus (1033) 1033 TOTAL SCORE: 8475 Bonus ------- Follower Combat Kills 233 Registered with UFD 300 Met Optimus in HQ 500 Cogmind --------- Core Integrity 0/850 Matter 192/300 Energy 259/340 System Corruption 7% Temperature Cool (9) Movement Walking (425) Ox4 Location -6/Factory Parts ------- > --- POWER (2) -------- Reinforced Deuterium Engine Micro Nuclear Core > --- PROPULSION (5) --- Carbon-fiber Leg Carbon-fiber Leg Improved VSS Leg Improved VSS Leg > --- UTILITY (6) ------ Improved Heat Sink Advanced Heat Sink Humpback Gun Armor Hacking Suite > --- WEAPON (3) ------- Improved Spread Laser Compact Ion Cannon Heavy Flak Cannon > --- INVENTORY (35) --- Light Humpback Humpback System Shield Tech Extrapolator Remote Datajack PL-3XN's Ring of Power Peak State ------------ > --- POWER ------------ Light Deuterium Engine Light Fission Core > --- PROPULSION ------- Overtuned Treads Overtuned Treads Medium Treads Improved Medium Treads > --- UTILITY ---------- Scrap Suit High-capacity Storage Unit Gun Armor Tech Extrapolator System Restoration Module > --- WEAPON ----------- Improved Spread Laser Disruptor Cannon Compact Ion Cannon > --- INVENTORY -------- Advanced Heat Sink Light Humpback Light Humpback Humpback Humpback Active Sensor Suite System Shield Makeshift System Shield Tech Extrapolator Tech Extrapolator Makeshift System Restoration Module Improved Spread Laser Ripper PL-3XN's Ring of Power [Rating: 76] Favorites ----------- Power Improved Ion Engine Engine Improved Ion Engine Power Core Light Fission Core Propulsion Light Treads Treads Light Treads Leg Carbon-fiber Leg Utility Gun Armor Device Advanced Heat Sink Storage High-capacity Storage Unit Processor Advanced Signal Interpreter Hackware Hacking Suite Protection Gun Armor Weapon Assault Rifle Energy Gun Improved Spread Laser Energy Cannon Powered Cannon Ballistic Gun Assault Rifle Ballistic Cannon Heavy Flak Cannon Special Weapon Mining Laser Build | -11 -10 -10 -10 -9 -9 -6 ------- Run | Yrd Mat Min Sub Rec Scr Fac Slots Evolved 9 | . 1 . . . . 8 Power 1 | . . . . . . 1 Propulsion 3 | . . . . . . 3 Utility 4 | . 1 . . . . 3 Weapon 1 | . . . . . . 1 Parts Attached 52 | 5 2 . 11 3 8 23 Power 6 | 1 . . 1 . . 4 Engine 4 | 1 . . 1 . . 2 Core 2 | . . . . . . 2 Reactor . | . . . . . . . Propulsion 18 | 2 . . 2 3 4 7 Treads 14 | 2 . . 2 3 4 3 Leg 4 | . . . . . . 4 Wheel . | . . . . . . . Hover . | . . . . . . . Flight . | . . . . . . . Utility 15 | 2 . . 5 . 2 6 Device 5 | . . . 1 . . 4 Storage 3 | 1 . . 1 . . 1 Processor 2 | . . . . . 2 . Hackware 1 | . . . . . . 1 Protection 4 | 1 . . 3 . . . Artifact . | . . . . . . . Weapon 13 | . 2 . 3 . 2 6 Energy Gun 3 | . . . . . . 3 Energy Cannon 3 | . . . 1 . 1 1 Ballistic Gun 3 | . 2 . 1 . . . Ballistic Cannon 3 | . . . . . 1 2 Launcher . | . . . . . . . Special Weapon 1 | . . . 1 . . . Impact Weapon . | . . . . . . . Slashing Weapon . | . . . . . . . Piercing Weapon . | . . . . . . . Special Melee Weapon . | . . . . . . . Unidentified Prototypes 3 | . . . 1 . . 2 Parts Lost 23 | . . . 2 2 6 13 Power 4 | . . . 1 . 1 2 Propulsion 6 | . . . . . 2 4 Utility 5 | . . . . 1 . 4 Weapon 8 | . . . 1 1 3 3 Highest Loss Streak 10 | . . . 1 2 3 10 To Critical Strikes . | . . . . . . . Average Backups 9 | 1 1 4 8 12 14 7 Power . | . . . . . . . Propulsion . | . . . . . . . Utility 7 | . . 3 6 8 10 5 Weapon 1 | . . 1 2 3 2 . Tool/Special . | . . . . . . . Unused Backups 23 | . . . 3 1 6 13 Power 1 | . . . . . 1 . Propulsion 1 | . . . . 1 . . Utility 17 | . . . 3 . 4 10 Weapon 3 | . . . . . 1 2 Tool/Special 1 | . . . . . . 1 Average Slot Usage (%) 78 | . 84 87 85 75 78 69 Engine 8 | . 12 12 9 9 9 5 Treads 17 | . 25 25 20 18 19 7 Leg 2 | . . . . . . 9 Device 2 | . . . . . . 9 Storage 9 | . 12 12 9 9 10 5 Processor 2 | . . . . . 8 1 Hackware 1 | . . . . . . 4 Protection 12 | . 12 12 19 14 10 6 Energy Gun 1 | . . . . . . 5 Energy Cannon 6 | . . . 5 9 10 6 Ballistic Gun 12 | . 22 25 18 14 9 1 Peak Build Rating 76 | 5 7 8 37 37 44 76 Average Rating 36 | 3 6 7 28 35 39 55 On Entrance 18 | . 5 7 8 37 34 39 Avg Prop Armor Cover (%) 5 | . . . . . . 5 Naked Turns . | . . . . . . . Heaviest Build 243 | 18 22 22 67 67 62 243 Greatest Support 94 | 40 40 40 40 43 43 94 Greatest Overweight (x) 75 | . . . 1 1 20 75 Average Overweight (x) 1 | . . . . 1 1 2 Largest Inventory Capacity 35 | 10 10 10 20 20 20 35 Average Capacity 20 | 8 10 10 16 20 20 29 Most Carried 20 | 5 3 6 16 20 20 20 Average Carried 13 | 1 1 4 12 17 19 12 Final Capacity 35 | 10 10 10 20 20 20 35 Final Carried 19 | 2 3 6 16 19 19 8 Scrap Suit Usage (%) 2 | . . . . . . 10 Parts Cannibalized 3 | . . . . . . 3 Class Distribution -------------------- 26% | Commander-Gunner 25% | Hacker-Mutant 20% | Hacker-Tank 10% | Hauler-Mutant 5% | Scavenger-Gunner 5% | Hauler-Gunner 3% | Commander-Tank Dominant Class ---------------- Hacker-Mutant | -10/Materials Hacker-Mutant | -10/Mines Hacker-Tank | -10/Subcaves Commander-Gunner | -9/Recycling Commander-Gunner | -9/Scraptown Hauler-Mutant | -6/Factory Resources | -11 -10 -10 -10 -9 -9 -6 ----------- Run | Yrd Mat Min Sub Rec Scr Fac Matter Collected 1996 | 250 62 102 490 92 276 724 Remotely . | . . . . . . . Salvage Created 3850 | . 214 221 580 421 803 1611 Parts 174 | . 9 11 32 16 34 72 Haulers Intercepted 1 | . . . . . . 1 Recyclers Shooed 5 | . . . . . . 5 Parts Field Recycled . | . . . . . . . Retrieved Matter . | . . . . . . . Parts Self-Destructed . | . . . . . . . Prevented . | . . . . . . . Parts Restored . | . . . . . . . Kills | -11 -10 -10 -10 -9 -9 -6 ------- Run | Yrd Mat Min Sub Rec Scr Fac Combat Hostiles Destroyed 75 | . 2 7 13 10 17 26 Guns 37 | . 2 7 11 4 3 10 Cannons 37 | . . . 2 6 14 15 Classes Destroyed 20 | . 3 2 3 3 4 5 Worker 3 | . . . . . . 3 Hauler 1 | . . . . . . 1 Recycler 5 | . 1 2 . . . 2 Turret 1 | . . . 1 . . . Watcher 3 | . 1 . . . . 2 Swarmer 9 | . . 2 . 1 . 6 Grunt 9 | . 2 . . 1 . 6 Brawler 1 | . . . . . . 1 Duelist 1 | . . . . 1 . . Protector 1 | . . . . 1 . . Sentry 5 | . . . 1 2 . 2 Specialist 4 | . . . . . . 4 Programmer 10 | . . . . 4 . 6 Heavy 1 | . . . . . . 1 Subdweller 12 | . . . 12 . . . Federalist 4 | . . . . . 4 . Ranger 1 | . . . . . 1 . Guru 4 | . . . . . 4 . Scrapper 7 | . . . . . 7 . Assembled 5 | . . 5 . . . . Butcher 1 | . . . . . 1 . Best Kill Streak 6 | . 2 2 3 5 6 4 Combat Bots Only 6 | . 2 2 3 5 6 4 Max Kills in Single Turn 2 | . 1 1 1 2 2 1 Gunslinging . | . . . . . . . Exploded . | . . . . . . . Melee . | . . . . . . . Uniques/NPCs Destroyed . | . . . . . . . Combat | -11 -10 -10 -10 -9 -9 -6 -------- Run | Yrd Mat Min Sub Rec Scr Fac Hostile Shots Fired 571 | . 4 10 94 17 130 316 Missed 141 | . 2 3 28 5 29 74 Hits 430 | . 2 7 66 12 101 242 Melee 2 | . . . . 2 . . Projectile 428 | . 2 7 66 10 101 242 AOE 1 | . . . . 1 . . Critical Strikes 17 | . 1 . 3 2 1 10 Part Disruptions 6 | . . . . . 2 4 Damage Taken 4452 | . 20 37 763 207 798 2627 Core 1024 | . . . 43 59 67 855 Absorbed by Shields 18 | . . . . . . 18 Ignored by Resistances 2484 | . 12 26 464 124 505 1353 Regen/Repaired (Parts) 30 | . . . . . . 30 Core Remaining (%) 66 | 100 . . . . 32 . Volleys Fired 220 | . 9 15 67 10 41 78 Largest 3 | . 2 2 3 3 2 3 Hottest 246 | . 40 40 140 80 125 246 Shots Fired 458 | . 18 30 151 29 56 174 Gun 268 | . 18 30 123 19 16 62 Cannon 181 | . . . 19 10 40 112 Launcher . | . . . . . . . Special 9 | . . . 9 . . . Kinetic 261 | . 18 30 123 19 35 36 Thermal 176 | . . . 28 10 19 119 Explosive . | . . . . . . . Electromagnetic 21 | . . . . . 2 19 Robot Hit Streak 36 | . 7 8 23 33 36 31 Robot Miss Streak 5 | . 1 1 1 . 2 5 Penetration Max . | . . . . . . . Secondary Targets 3 | . . . 3 . . . Max Gunslinging Chain 1 | . . . 1 . . . Shots Hit Robots 322 | . 14 22 87 15 41 143 Core Hits 239 | . 8 14 30 8 44 135 Critical Kills 2 | . . . 1 . . 1 Critical Parts Destroyed . | . . . . . . . Critical Strikes 2 | . . . 1 . . 1 Meltdown 1 | . . . . . . 1 Destroy 1 | . . . 1 . . . Melee Attacks . | . . . . . . . Impact . | . . . . . . . Slashing . | . . . . . . . Piercing . | . . . . . . . Sneak Attacks . | . . . . . . . Combat Hostiles . | . . . . . . . Follow-up Attacks . | . . . . . . . Damage Inflicted 7527 | . 174 274 1456 625 1222 3776 Guns 3187 | . 174 274 960 138 135 1506 Cannons 4316 | . . . 472 487 1087 2270 Explosions . | . . . . . . . Melee . | . . . . . . . Ramming . | . . . . . . . Kinetic 2974 | . 174 274 960 138 689 739 Thermal 4340 | . . . 496 487 513 2844 Explosive . | . . . . . . . Electromagnetic 213 | . . . . . 20 193 Impact . | . . . . . . . Slashing . | . . . . . . . Piercing . | . . . . . . . Highest Corruption 7 | . . . . 1 1 7 Average Corruption 3 | . . . . 1 1 4 Corruption Purged . | . . . . . . . Corruption Blocked . | . . . . . . . Effects 69 | . . . . 5 4 60 Message Errors 19 | . . . . . 2 17 Matter Fused 13 | . . . . . 1 12 Heat Flow Errors 11 | . . . . 1 1 9 Energy Discharges 11 | . . . . 2 . 9 Parts Rejected 1 | . . . . . . 1 Parts Fused 1 | . . . . 1 . . Data Loss (minor) 8 | . . . . 1 . 7 Data Loss (major) 2 | . . . . . . 2 Misfires 3 | . . . . . . 3 Overload Shots . | . . . . . . . Overflow Damage 218 | . . . . 103 40 75 Projectiles 218 | . . . . 103 40 75 Explosions . | . . . . . . . Melee . | . . . . . . . Knockbacks 30 | . . . . . 15 15 Impact . | . . . . . . . Kinetic 29 | . . . . . 14 15 Secondary 1 | . . . . . 1 . Self-Inflicted Damage . | . . . . . . . Shots . | . . . . . . . Rammed 1 | . . . . 1 . . Targets Rammed 1 | . . . . 1 . . Kicked . | . . . . . . . Crushed . | . . . . . . . Highest Temperature 661 | . 24 . 10 243 115 661 Average Temperature 162 | . 13 . 10 62 38 213 Received Heat Transfer 2052 | . 36 . 276 9 571 1160 Effects 45 | . . . . . . 45 Shutdowns 9 | . . . . . . 9 Energy Bleed 7 | . . . . . . 7 Interference 4 | . . . . . . 4 Matter Decay 8 | . . . . . . 8 Short Circuit 5 | . . . . . . 5 Damage (minor) 1 | . . . . . . 1 Damage (major) 8 | . . . . . . 8 Damage (core) 3 | . . . . . . 3 Siege Activations . | . . . . . . . Martial Activations . | . . . . . . . Shielding Activations . | . . . . . . . Robots Disrupted . | . . . . . . . Combat Hostiles . | . . . . . . . Robots Corrupted . | . . . . . . . Combat Hostiles . | . . . . . . . Parts Fried . | . . . . . . . Impact Corruptions . | . . . . . . . Robots Melted 1 | . . . . . . 1 Combat Hostiles 1 | . . . . . . 1 Parts Melted 12 | . . . . . 4 8 Heat Transferred 3040 | . . . 50 . . 2990 Parts Sabotaged . | . . . . . . . Parts Stolen . | . . . . . . . Parts Stripped . | . . . . . . . Power Chain Reactions . | . . . . . . . Alert | -11 -10 -10 -10 -9 -9 -6 ------- Run | Yrd Mat Min Sub Rec Scr Fac Maximum Alert Level 1 | . . . . 1 . . Low Security (%) 99 | 100 100 100 . 99 . 100 Level 1 . | . . . . . . . Level 2 . | . . . . . . . Level 3 . | . . . . . . . Level 4 . | . . . . . . . Level 5 . | . . . . . . . High Security . | . . . . . . . Max Security . | . . . . . . . Peak Influence 208 | . 35 50 . 208 . 70 Initial . | . . . . . . . Average 9 | . 6 1 . 32 . 5 Influence Increases 1370 | . 62 60 40 450 . 758 Destroy 0b10 Robot/C 1000 | . 40 40 40 360 . 520 Destroy 0b10 Robot/NC 100 | . 10 10 . 40 . 40 Destroy Leader 198 | . 12 10 . . . 176 Allied During Kill 11 | . . . . 11 . . Disable Machine 4 | . . . . . . 4 Destroy Structure 42 | . . . . 39 . 3 Lose Combat Pursuer 15 | . . . . . . 15 Influence Decreases 1334 | . 62 60 40 450 . 722 Time Decay 1169 | . 62 60 40 370 . 637 Lost Part 105 | . . . . 20 . 85 Lost Ally 60 | . . . . 60 . . Squads Dispatched 13 | . . . . . . 13 Investigation 1 | . . . . . . 1 Extermination 5 | . . . . . . 5 Reinforcement 3 | . . . . . . 3 Assault . | . . . . . . . Garrison 4 | . . . . . . 4 Intercept . | . . . . . . . Searches Triggered . | . . . . . . . Construction Impeded . | . . . . . . . Haulers Reinforced . | . . . . . . . Active Scanning Responses . | . . . . . . . Cargo Convoy Interrupts 1 | . . . . . . 1 Stealth | -11 -10 -10 -10 -9 -9 -6 --------- Run | Yrd Mat Min Sub Rec Scr Fac Distress Signals 3 | . . 1 . . . 2 Communications Jammed . | . . . . . . . Distress Signals . | . . . . . . . Times Spotted 97 | . 3 6 15 11 23 39 Peak Tracking Total 7 | . 2 2 3 5 7 7 Tactical Retreats 1 | . . . . . . 1 Traps | -11 -10 -10 -10 -9 -9 -6 ------- Run | Yrd Mat Min Sub Rec Scr Fac Traps Triggered 3 | . . . 1 . . 2 Indirectly . | . . . . . . . Trap Hack Attempts . | . . . . . . . Triggered . | . . . . . . . Disarmed . | . . . . . . . Reprogrammed . | . . . . . . . Reused . | . . . . . . . Traps Extracted . | . . . . . . . Installed . | . . . . . . . Triggered . | . . . . . . . Machines | -11 -10 -10 -10 -9 -9 -6 ---------- Run | Yrd Mat Min Sub Rec Scr Fac Machines Disabled 4 | . . . 1 . 2 1 Max in Single Turn 1 | . . . 1 . 1 1 Garrison Access 1 | . . . . . . 1 Machines Repaired . | . . . . . . . Machines Dismantled . | . . . . . . . Machines Sabotaged . | . . . . . . . Overloaded Fab Kills . | . . . . . . . Hacking | -11 -10 -10 -10 -9 -9 -6 --------- Run | Yrd Mat Min Sub Rec Scr Fac Machines Accessed 7 | . . . 2 . 4 1 Terminals . | . . . . . . . Fabricators . | . . . . . . . Repair Stations . | . . . . . . . Recycling Units . | . . . . . . . Scanalyzers . | . . . . . . . Garrison Access 1 | . . . . . . 1 Total Hacks 18 | . . . 5 . 12 1 Successful 18 | . . . 5 . 12 1 Failed . | . . . . . . . Catastrophic . | . . . . . . . Database Lockouts . | . . . . . . . Manual . | . . . . . . . Terminals . | . . . . . . . Fabricators . | . . . . . . . Repair Stations . | . . . . . . . Recycling Units . | . . . . . . . Scanalyzers . | . . . . . . . Garrison Access 1 | . . . . . . 1 Terminal Hacks 17 | . . . 5 . 12 . Record 9 | . . . 4 . 5 . Robot Analysis 6 | . . . . . 6 . Proto ID Catalog 2 | . . . 1 . 1 . Fabricator Hacks . | . . . . . . . Repair Station Hacks . | . . . . . . . Recycling Unit Hacks . | . . . . . . . Scanalyzer . | . . . . . . . Garrison Access Hacks 1 | . . . . . . 1 Seal Access 1 | . . . . . . 1 Unauthorized Hacks . | . . . . . . . Terminals . | . . . . . . . Fabricators . | . . . . . . . Repair Stations . | . . . . . . . Recycling Units . | . . . . . . . Scanalyzers . | . . . . . . . Garrison Access . | . . . . . . . Data Cores Recovered . | . . . . . . . Used . | . . . . . . . Hacking Detections . | . . . . . . . Full Trace Events . | . . . . . . . Feedback Events . | . . . . . . . Feedback Blocked . | . . . . . . . Robot Schematics Acquired . | . . . . . . . Robots Built . | . . . . . . . Authchips . | . . . . . . . Time . | . . . . . . . Total Robot Build Rating . | . . . . . . . Part Schematics Acquired 8 | . . . . . 1 7 Parts Built . | . . . . . . . Authchips . | . . . . . . . Time . | . . . . . . . Total Part Build Rating . | . . . . . . . Part Studies Acquired . | . . . . . . . Parts Repaired . | . . . . . . . Time . | . . . . . . . Parts Recycled . | . . . . . . . Recycled Matter . | . . . . . . . Retrieved Matter . | . . . . . . . Retrieved Components . | . . . . . . . Parts Scanalyzed . | . . . . . . . Part Schematics Acquired . | . . . . . . . Parts Damaged . | . . . . . . . Bothacking | -11 -10 -10 -10 -9 -9 -6 ------------ Run | Yrd Mat Min Sub Rec Scr Fac Used RIF Installer . | . . . . . . . Robots Hacked . | . . . . . . . Non-combat . | . . . . . . . Combat . | . . . . . . . Robot Hacks Applied . | . . . . . . . Relay Couplers Released . | . . . . . . . Fabnet Peak Effective % . | . . . . . . . Robots Rewired 16 | . . . . 16 . . Allies Hacked . | . . . . . . . Hacks Repelled . | . . . . . . . Allies | -11 -10 -10 -10 -9 -9 -6 -------- Run | Yrd Mat Min Sub Rec Scr Fac Total Allies 16 | . . . . 16 . . Largest Group 12 | . . . . 12 12 . Highest-Rated Group 145 | . . . . 145 121 . Highest-Rated Ally 34 | . . . . 34 27 . Total Orders . | . . . . . . . Ally Attacks 24 | . . . . 12 12 . Total Damage 988 | . . . . 893 95 . Kills 14 | . . . . 12 2 . Allies Corrupted . | . . . . . . . Allies Melted 5 | . . . . . 5 . Intel | -11 -10 -10 -10 -9 -9 -6 ------- Run | Yrd Mat Min Sub Rec Scr Fac Active Infowar (turns) 82 | . . . 82 . . . Terrain 82 | . . . 82 . . . Robot Analysis Total 6 | . . . . . 6 . Derelict Logs Recovered 3 | . . 1 2 . . . Drone Launches . | . . . . . . . Drone Recoveries . | . . . . . . . Exploration | -11 -10 -10 -10 -9 -9 -6 ------------- Run | Yrd Mat Min Sub Rec Scr Fac Turns Passed 14852 | 81 220 1520 4187 1318 3766 3760 Spaces Moved 5438 | 52 113 853 1746 461 1187 1026 Core 37 | 19 . . . . 3 15 Treads 5003 | 33 113 853 1746 461 1184 613 Legs 398 | . . . . . . 398 Wheels . | . . . . . . . Hover . | . . . . . . . Flight . | . . . . . . . Fastest Speed 50 | 50 160 160 160 250 160 150 Average Speed 235 | 119 160 160 210 250 255 324 Slowest Speed 3800 | 160 160 160 250 250 1050 3800 Overloaded Moves . | . . . . . . . Propulsion Burnouts . | . . . . . . . Robots Hopped . | . . . . . . . Potential Cave-ins . | . . . . . . . Cave-ins Triggered . | . . . . . . . Exploration Rate (%) 58 | 4 34 99 87 75 81 27 Regions Visited 6 Branch Regions 4 Pre-discovered Areas 4 | . . 1 3 . . . Known Exits Taken 6 | 1 1 1 1 1 1 . Unknown Exits Taken . | . . . . . . . Scrap Searched 13 | . . 1 8 . 4 . Spaces Dug 5 | . . . 5 . . . Terrain Destroyed 15 | . . . 6 1 5 3 Melee . | . . . . . . . Projectile 15 | . . . 6 1 5 3 AOE . | . . . . . . . Terrain Rammed . | . . . . . . . Walls Destroyed . | . . . . . . . Machines Disabled . | . . . . . . . Actions | -11 -10 -10 -10 -9 -9 -6 --------- Run | Yrd Mat Min Sub Rec Scr Fac Total 7067 | 71 134 978 2108 606 1867 1303 Wait 1153 | 8 8 108 252 36 605 136 Move 5432 | 51 112 852 1745 460 1186 1026 Hop . | . . . . . . . Pick Up 74 | 7 3 3 16 7 13 25 Fast Attach 11 | . . . 1 . 2 8 Attach 39 | 5 2 . 9 . 5 18 Detach 8 | . . . 5 . 1 2 Swap 13 | . . . 5 3 4 1 Drop 27 | . . . 8 4 10 5 Fire 220 | . 9 15 67 10 41 78 Melee . | . . . . . . . Ram . | . . . . . . . Kick . | . . . . . . . Crush 1 | . . . . 1 . . Escape Stasis 4 | . . . . . . 4 Rewire 85 | . . . . 85 . . Trap . | . . . . . . . Miscellaneous . | . . . . . . . Route ------- -11/Scrapyard -10/Materials -10/Mines (discovered 4 exits: *Mat x2 / *Exi / *Sub) -10/Subcaves (discovered 3 exits: *Mat x2 / *Rec) -9/Recycling (discovered 2 exits: *Fac / *Scr) -9/Scraptown -6/Factory (discovered 6 exits: *Fac x4 / Low x2) History --------- Turn | Location | Event 5 | -11/Scrapyard | Identified exit to Materials 5 | -11/Scrapyard | Discovered exit to Materials (range 16) 82 | -11/Scrapyard | Entered Materials 82 | -10/Materials | Evolved 1 slot: Utility x1 175 | -10/Materials | Met 8R-AWN 209 | -10/Materials | Identified exit to Mines 209 | -10/Materials | Discovered exit to Mines (range 16) 302 | -10/Materials | Entered Mines 303 | -10/Mines | Followed 8R-AWN into the Mines 306 | -10/Mines | Build established: Hacker-Mutant 321 | -10/Mines | Identified exit to Exiles 321 | -10/Mines | Discovered exit to Exiles (range 5) 433 | -10/Mines | YI-UF0 nonchalantly dropped a Grenade Launcher on the ground 615 | -10/Mines | Identified exit to Materials 615 | -10/Mines | Discovered exit to Materials (range 10) 790 | -10/Mines | Assembled infested the area 795 | -10/Mines | Assisted by a Guerilla fighting off Assembled 1029 | -10/Mines | Found a hidden stash of uninstalled traps 1107 | -10/Mines | Identified exit to Subcaves 1107 | -10/Mines | Discovered exit to Subcaves (range 6) 1445 | -10/Mines | Discovered exit to Materials (range 9) 1822 | -10/Mines | Entered Subcaves 1823 | -10/Subcaves | Approached by a straggling Scientist 2232 | -10/Subcaves | Shifting Twisted Machinery released Sub. Beam Cannon 2242 | -10/Subcaves | Identified exit to Recycling 2242 | -10/Subcaves | Discovered exit to Recycling (range 8) 2344 | -10/Subcaves | A swath of the cavern ceiling suddenly collapsed 2532 | -10/Subcaves | A Subdweller sparked back to life 2568 | -10/Subcaves | Found Prototype Protection 2699 | -10/Subcaves | Shifting Twisted Machinery released Sub. Machine Gun 2889 | -10/Subcaves | Identified Gun Armor 2890 | -10/Subcaves | Attached Gun Armor, gained temporary slots: Weapon x2 2983 | -10/Subcaves | Visited Clippyterm 2987 | -10/Subcaves | Learned 40 Factory zone layouts 2987 | -10/Subcaves | Learned Factory stockpile data 3359 | -10/Subcaves | Visited 4L-MR0's lab 3392 | -10/Subcaves | Found Powered Cannon 3394 | -10/Subcaves | Attached Powered Cannon, gained temporary slot: Power 3486 | -10/Subcaves | Learned location of Mines (-10) 3593 | -10/Subcaves | Build established: Hacker-Tank 3690 | -10/Subcaves | Identified exit to Materials 3690 | -10/Subcaves | Discovered exit to Materials (range 11) 3881 | -10/Subcaves | Ambushed by Subdweller buried in earth 4717 | -10/Subcaves | A swath of the cavern ceiling suddenly collapsed 4931 | -10/Subcaves | Discovered exit to Materials (range 15) 4976 | -10/Subcaves | Shifting Twisted Machinery released Sub. Monowheel 4997 | -10/Subcaves | Learned location of Zion (-6) 4997 | -10/Subcaves | Met a Zionite searching for "candidates" 5160 | -10/Subcaves | Shifting Twisted Machinery released Riot Gun 6009 | -10/Subcaves | Entered Recycling 6422 | -9/Recycling | Identified exit to Factory 6422 | -9/Recycling | Discovered exit to Factory (range 15) 6426 | -9/Recycling | Build established: Commander-Tank 6746 | -9/Recycling | Lost 3 allies 7009 | -9/Recycling | Build established: Commander-Gunner 7246 | -9/Recycling | Scanned before Scraplab entrance 7289 | -9/Recycling | Entered Scraplab 7309 | -9/Recycling | Identified exit to Scraptown 7309 | -9/Recycling | Discovered exit to Scraptown (range 2) 7327 | -9/Recycling | Entered Scraptown 7327 | -9/Scraptown | Accompanied by 12 allies 7327 | -9/Scraptown | System corruption cleaned by C-Scrubber 7770 | -9/Scraptown | Visited Red Mages 7878 | -9/Scraptown | Visited Comm Corps 7898 | -9/Scraptown | Visited Spacefarers 7958 | -9/Scraptown | Visited Awakened 8658 | -9/Scraptown | Visited UFD Registry 8658 | -9/Scraptown | Registered with UFD as "Bladegunner" 8738 | -9/Scraptown | Visited Derelict Rescue Squad 8772 | -9/Scraptown | Visited Infowarlord's Domain 8886 | -9/Scraptown | Delivered Scrap Shield to a Scientist 9032 | -9/Scraptown | Visited Curators Association 9141 | -9/Scraptown | Visited Analyses Database 9198 | -9/Scraptown | Visited Research Penetration Think Tank 9243 | -9/Scraptown | Visited Scrap Suit Storage 9279 | -9/Scraptown | Visited Botcube Research 9321 | -9/Scraptown | Visited Science Guys 9422 | -9/Scraptown | Visited Abandonware Association 9518 | -9/Scraptown | Learned abandonware demo "REBOOT5.EXE" 9730 | -9/Scraptown | Found Active Sensor Suite 10166 | -9/Scraptown | Met Optimus 10166 | -9/Scraptown | Accepted into 0bPrime 10566 | -9/Scraptown | Civil war broke out across Scraptown 10575 | -9/Scraptown | Found PL-3XN's Ring of Power 10645 | -9/Scraptown | Lost 8 allies 10725 | -9/Scraptown | Lost 12 allies 10802 | -9/Scraptown | Core integrity fell below 50% 10833 | -9/Scraptown | Lost 3 parts (1p2w) 10852 | -9/Scraptown | Found Scrap Suit 10941 | -9/Scraptown | Lost 4 allies 11028 | -9/Scraptown | Identified exit to Factory 11028 | -9/Scraptown | Discovered exit to Factory (range 5) 11093 | -9/Scraptown | Entered Factory 11093 | -6/Factory | Evolved 8 slots: Power x1, Propulsion x3, Utility x3, Weapon x1 11094 | -6/Factory | Identified exit to Factory 11094 | -6/Factory | Identified exit to Lower Caves 11103 | -6/Factory | Build established: Hacker-Mutant 11360 | -6/Factory | Tech Extrapolator generated special schematic: Deep Structural Scanner 11591 | -6/Factory | Tech Extrapolator generated special schematic: Machine Rigger 11659 | -6/Factory | Build established: Scavenger-Gunner 11820 | -6/Factory | Cargo convoy interrupted 11838 | -6/Factory | Tech Extrapolator generated special schematic: Active Sensor Spoofer 11840 | -6/Factory | Garrison activated, responded to threat 12179 | -6/Factory | Spotted B-75 Beast 12376 | -6/Factory | Core integrity fell below 50% 12381 | -6/Factory | Core integrity fell below 20% 12397 | -6/Factory | Lost 10 parts (1p4n3u2w) 12731 | -6/Factory | Build established: Hauler-Mutant 13771 | -6/Factory | Discovered exit to Factory (range 15) 14313 | -6/Factory | Build established: Hauler-Gunner 14839 | -6/Factory | Garrison activated, responded to threat 14853 | -6/Factory | Destroyed by G-50 Soldier with Heavy Laser Last Messages --------------- 14833_ S-27 Virus destroyed. 14835_ R-10 Processor collects Autogun. 14839_ R-10 Processor calls for garrison support. 14839_ ALERT: Activating Garrison Access F003. 14840_ U-05 Engineer builds a Wall. 14840_ K-01 Serf collects debris. 14842_ Destroyed Lgt. Nuclear Core. 14842_ S-27 Virus destroyed. 14844_ K-01 Serf collects debris. 14845_ Field strength at 52. 14846_ Field strength at 37. 14847_ Field strength at 22. 14848_ K-01 Serf collects debris. 14848_ Field strength at 7. 14849_ Stasis field depleted. 14852_ System corrupted: Energy discharge (-105). 14852_ K-01 Serf collects debris. 14853_ U-05 Engineer lays Concrete. Map ----- +----------------------------------------------------+ | ???????????????????????????# #???#""""# | | ??????????????????????????## #???###### | | ??????????????????????????# #????????? | | ??????????????????????????## #????????? | | ???????????????????????????##############????????? | | ?????????????????????????????????????????????????? | | ?????????????????????????????????????????????????? | | ?????????????????????????????????????????????????? | | ?????????????????????????????????????????????????? | | ?????????????????????????????????????????????????? | | ##??????????????###########################??????? | | #??????????????# # #??????? | | #??????????????# # " " " #??????? | | #?????########## # " " " #??????? | | #?????# [# # " " " #??????? | | #?????# """ # # " " " #??????? | | #?????# """"" # # " " " #??????? | | #?????# """"" # # " " " #??????? | | #?????# # # " " " #??????? | | #?????# """ # # " " " "" #??????? | | #?????# """"" # # " " " G" #??????? | | ???????# """"" # # "" #??????? | | ???????# # # #??????? | | ###############+#######+############+######??????? | | ^ g% ########## | | u @ u % g | | k ^ k | | ^^ m | | R ^ ########## | | #+#############+##############+#### # | | # # # # """"" | | """"""" # """ """ # """"""""" # # """"" | | ""?"""" # """ """ # + + """ | | ""?"""" # """ """ # """"""""" # # | | ?"??""" # # # # | | ???? # ############## ########## | | """?""" # #?????????######+######## | | """?""" # #?????????# ## | | "???""" ###################?# " " " ## | | ????""" # #?# " " " ## | | ???? # """"""""" #?# " " " ## ! | | ???? # #?# " " " ## | | ########+### """"""""" #?# " " " ## | | ######## #?# #?# " " " ## | | ## #?# """"""""" #?# " " " ###### | | ## #?# #?# " " " """ # | | """ ## #?##########+########## " " " R" # | | """ ## ### + """ # | | """ # ######## # | | + #??????##################+ | +----------------------------------------------------+ Best States ------------- Heat Dissipation 70 Energy Generation 27 Energy Capacity 340 Matter Stores 300 Matter Capacity 300 Sight Range 16 Terrain Scan Range 16 Terrain Scan Density 10 Armor Coverage 300 Resistance: KI 35 Resistance: TH 35 Resistance: EX 35 Resistance: EM 35 Resistance: I 35 Resistance: S 35 Resistance: P 35 Evasion (%) 50 Recoil Reduction 4 Offensive Hacking 30 Item Schematics ----------------- Mak. Leg | -9/Scraptown | Extrapolated Spk. Medium Treads | -6/Factory | Extrapolated Lgt. Humpback | -6/Factory | Extrapolated Deep Structural Scanner | -6/Factory | Extrapolated Mak. Coolant Network | -6/Factory | Extrapolated Machine Rigger | -6/Factory | Extrapolated Mak. ECM Suite | -6/Factory | Extrapolated Active Sensor Spoofer | -6/Factory | Extrapolated Robot Schematics ------------------ None Fabricated ------------ Nothing Repaired ---------- Nothing Studied --------- None Alien Tech Used ----------------- None Achievements -------------- Follow The Leader Challenges ------------ None Game ------ Seed InertialTechLoader Manual? 0 Play Time 00:57:40 Cumulative 142.5 hours Start 2025.11.25 @ 11:37:02 End 2025.11.25 @ 12:43:24 Sessions 1 Manual Loads 0 Difficulty Explorer Special Mode None Game No. 168 Rogue 0 Adventurer 0 Explorer 168 Win Type - Total 0 Types 0/0/0/0/0/0/0/0/0/0 Lore% 69 Gallery% 66 Achievement% 52 Wizard Run 0 Options --------- Layout 1 ASCII 0 Keyboard 0 Movement Mouse Keybinds 0 Fullscreen 1 Font 24/Smallcaps Map View 50x35 Zoom Use 0% Tactical HUD 1 Map Filters NONE Filters NONE Steam 1 RUN: ca462fbf-4d53-44f3-9830-91c4de56f1e2